Cogmind - Beta 15 @@@ ROGUE MODE // 2025.07.04 @ 13:56:48 Player: Khoroshiy Result: Destroyed by 59-8OS(z) with Zionite Laser-S Performance ------------- Evolutions (1) 500 Regions Visited (5) 1000 Robots Destroyed (32) 160 Value Destroyed (536) 536 Prototype IDs (0) 0 Alien Tech Used (0) 0 Bonus (600) 600 TOTAL SCORE: 2796 Bonus ------- Met Imprinter 300 Was Imprinted 300 Cogmind --------- Core Integrity 0/400 Matter 88/300 Energy 78/170 System Corruption 3% Temperature Cool (18) Movement Walking (190) Ox1 Location -7/Deep Caves Parts ------- > --- POWER (1) -------- Makeshift Power Source > --- PROPULSION (3) --- Carbon-fiber Leg > --- UTILITY (3) ------ Medium Storage Unit Makeshift Terrain Scan Processor > --- WEAPON (2) ------- CR-A16's Pointy Stick > --- INVENTORY (10) --- Wheel Compact Wheel Advanced Visual Processing Unit Signal Interpreter Makeshift System Shield Peak State ------------ > --- POWER ------------ Light Ion Engine > --- PROPULSION ------- Carbon-fiber Leg Carbon-fiber Leg Carbon-fiber Leg > --- UTILITY ---------- Medium Storage Unit Improved Terrain Scanner Makeshift Terrain Scan Processor > --- WEAPON ----------- Rocket Launcher CR-A16's Pointy Stick > --- INVENTORY -------- Makeshift Power Source Carbon-fiber Leg Wheel Compact Wheel Advanced Visual Processing Unit Signal Interpreter Makeshift System Shield Rocket Launcher Rocket Launcher [Rating: 26] Favorites ----------- Power Light Ion Engine Engine Light Ion Engine Propulsion Wheel Leg Carbon-fiber Leg Wheel Wheel Utility Medium Storage Unit Device Improved Terrain Scanner Storage Medium Storage Unit Processor Terrain Scan Processor Weapon Rocket Launcher Energy Gun EM Pulse Gun Ballistic Gun Assault Rifle Launcher Rocket Launcher Special Weapon Mining Laser Impact Weapon Flail Piercing Weapon CR-A16's Pointy Stick Build | -11 -10 -9 -9 -7 -7 ------- Run | Yrd Mat Mat Min Zio Dee Slots Evolved 2 | . . 2 . . . Power . | . . . . . . Propulsion 1 | . . 1 . . . Utility 1 | . . 1 . . . Weapon . | . . . . . . Parts Attached 29 | 6 9 5 . 5 4 Power 4 | 1 1 1 . . 1 Engine 4 | 1 1 1 . . 1 Core . | . . . . . . Reactor . | . . . . . . Propulsion 10 | 2 2 2 . 3 1 Treads . | . . . . . . Leg 4 | . . . . 3 1 Wheel 6 | 2 2 2 . . . Hover . | . . . . . . Flight . | . . . . . . Utility 5 | 1 2 1 . 1 . Device 1 | . . 1 . . . Storage 2 | 1 1 . . . . Processor 2 | . 1 . . 1 . Hackware . | . . . . . . Protection . | . . . . . . Artifact . | . . . . . . Weapon 10 | 2 4 1 . 1 2 Energy Gun 2 | 2 . . . . . Energy Cannon . | . . . . . . Ballistic Gun 2 | . 2 . . . . Ballistic Cannon . | . . . . . . Launcher 3 | . . 1 . . 2 Special Weapon 1 | . 1 . . . . Impact Weapon 1 | . 1 . . . . Slashing Weapon . | . . . . . . Piercing Weapon 1 | . . . . 1 . Special Melee Weapon . | . . . . . . Unidentified Prototypes . | . . . . . . Parts Lost 17 | . 5 3 1 . 8 Power 3 | . 1 1 . . 1 Propulsion 7 | . 2 1 1 . 3 Utility 1 | . . . . . 1 Weapon 6 | . 2 1 . . 3 Highest Loss Streak 7 | . 3 3 1 . 7 To Critical Strikes . | . . . . . . Average Backups 9 | 1 8 8 10 9 9 Power 1 | . 1 1 1 . 1 Propulsion 3 | . 2 2 4 4 3 Utility 1 | . . 1 2 2 3 Weapon 2 | . 3 3 3 2 2 Tool/Special . | . . . . . . Unused Backups 11 | . 3 3 . 2 3 Power 2 | . 1 . . 1 . Propulsion 3 | . 1 2 . . . Utility 3 | . . . . . 3 Weapon 3 | . 1 1 . 1 . Tool/Special . | . . . . . . Average Slot Usage (%) 90 | . 88 96 91 88 87 Engine 11 | . 13 10 11 11 10 Leg 4 | . . . . . 31 Wheel 22 | . 26 32 25 21 . Device 6 | . . 10 11 11 2 Storage 11 | . 14 11 11 11 11 Processor 10 | . 10 11 11 11 11 Energy Gun 1 | . 4 . . . . Ballistic Gun 2 | . 10 . . . . Launcher 8 | . . 10 11 11 15 Special Weapon 1 | . 2 3 . . . Impact Weapon 6 | . 6 5 11 8 . Piercing Weapon 1 | . . . . 2 6 Peak Build Rating 26 | 6 10 16 16 26 26 Average Rating 14 | 5 8 14 15 17 22 On Entrance 12 | . 6 10 16 15 26 Naked Turns . | . . . . . . Heaviest Build 22 | 12 19 21 20 21 22 Greatest Support 45 | 26 26 36 36 45 45 Greatest Overweight (x) 4 | . 1 . . . 4 Average Overweight (x) . | . . . . . . Largest Inventory Capacity 10 | 8 10 10 10 10 10 Average Capacity 9 | 7 9 10 10 10 10 Most Carried 10 | 4 10 10 10 10 9 Average Carried 9 | 2 8 8 10 9 8 Final Capacity 10 | 8 10 10 10 10 10 Final Carried 10 | 4 10 10 10 9 5 Class Distribution -------------------- 52% | Scavenger-Mutant 47% | Mutant Dominant Class ---------------- Mutant | -10/Materials Scavenger-Mutant | -9/Materials Scavenger-Mutant | -9/Mines Scavenger-Mutant | -7/Zion Mutant | -7/Deep Caves Resources | -11 -10 -9 -9 -7 -7 ----------- Run | Yrd Mat Mat Min Zio Dee Matter Collected 687 | 213 202 66 171 10 25 Remotely . | . . . . . . Salvage Created 587 | . 323 157 74 . 33 Parts 31 | . 16 13 2 . . Haulers Intercepted . | . . . . . . Recyclers Shooed . | . . . . . . Parts Field Recycled . | . . . . . . Retrieved Matter . | . . . . . . Parts Self-Destructed . | . . . . . . Prevented . | . . . . . . Kills | -11 -10 -9 -9 -7 -7 ------- Run | Yrd Mat Mat Min Zio Dee Combat Hostiles Destroyed 30 | . 9 8 4 . 9 Melee 8 | . 4 . 2 . 2 Guns 3 | . 3 . . . . AOE 15 | . . 8 . . 7 Classes Destroyed 9 | . 5 2 1 . 1 Worker 2 | . . . 2 . . Builder 2 | . . 2 . . . Tunneler 1 | . 1 . . . . Recycler 1 | . . 1 . . . Operator 2 | . 1 1 . . . Watcher 3 | . 1 2 . . . Swarmer 14 | . 4 6 4 . . Grunt 7 | . 5 2 . . . Assembled 9 | . . . . . 9 Best Kill Streak 14 | . 4 14 6 . 6 Combat Bots Only 8 | . 3 8 4 . 6 Max Kills in Single Turn 2 | . 1 2 1 . 2 Gunslinging . | . . . . . . Exploded 2 | . . 2 . . 2 Melee 1 | . 1 . 1 . 1 Uniques/NPCs Destroyed . | . . . . . . Combat | -11 -10 -9 -9 -7 -7 -------- Run | Yrd Mat Mat Min Zio Dee Hostile Shots Fired 175 | . 80 17 11 . 67 Missed 37 | . 11 6 1 . 19 Hits 138 | . 69 11 10 . 48 Melee 7 | . . . . . 7 Projectile 131 | . 69 11 10 . 41 Critical Strikes 1 | . . . 1 . . Damage Taken 2236 | . 696 167 85 . 1288 Core 602 | . 193 19 25 . 365 Absorbed by Shields . | . . . . . . Regen/Repaired (Parts) 36 | . . 25 . 11 . Core Remaining (%) 61 | 100 22 . . . . Volleys Fired 61 | . 31 20 . . 10 Largest 2 | . 2 1 . . 2 Hottest 100 | . 100 100 . . 66 Shots Fired 84 | . 51 20 . . 13 Gun 40 | . 40 . . . . Cannon . | . . . . . . Launcher 30 | . . 17 . . 13 Special 14 | . 11 3 . . . Kinetic 30 | . 30 . . . . Thermal 19 | . 16 3 . . . Explosive 30 | . . 17 . . 13 Electromagnetic 5 | . 5 . . . . Robot Hit Streak 6 | . 6 3 . . 4 Robot Miss Streak 3 | . 2 3 . . 3 Penetration Max . | . . . . . . Secondary Targets . | . . . . . . Shots Hit Robots 61 | . 40 5 9 . 7 Core Hits 45 | . 11 18 2 . 14 Critical Kills 1 | . 1 . . . . Critical Parts Destroyed 2 | . 1 . 1 . . Critical Strikes 4 | . 3 . 1 . . Burn 1 | . 1 . . . . Smash 3 | . 2 . 1 . . Melee Attacks 53 | . 26 8 12 . 7 Impact 46 | . 26 8 12 . . Slashing . | . . . . . . Piercing 7 | . . . . . 7 Sneak Attacks 6 | . 2 . 4 . . Combat Hostiles 1 | . 1 . . . . Follow-up Attacks . | . . . . . . Damage Inflicted 3036 | . 908 1030 457 . 641 Guns 343 | . 343 . . . . Cannons . | . . . . . . Explosions 1547 | . . 1030 . . 517 Melee 1146 | . 565 . 457 . 124 Ramming . | . . . . . . Kinetic 254 | . 254 . . . . Thermal 49 | . 49 . . . . Explosive 1547 | . . 1030 . . 517 Electromagnetic 40 | . 40 . . . . Impact 1022 | . 565 . 457 . . Slashing . | . . . . . . Piercing 124 | . . . . . 124 Highest Corruption 3 | . . . . . 3 Average Corruption 3 | . . . . . 3 Corruption Purged . | . . . . . . Corruption Blocked . | . . . . . . Effects 7 | . . . . . 7 Message Errors 2 | . . . . . 2 Matter Fused 2 | . . . . . 2 Energy Discharges 2 | . . . . . 2 Misfires 1 | . . . . . 1 Overload Shots . | . . . . . . Overflow Damage 323 | . 96 70 157 . . Projectiles . | . . . . . . Explosions 70 | . . 70 . . . Melee 253 | . 96 . 157 . . Knockbacks 6 | . 4 . 2 . . Impact 6 | . 4 . 2 . . Kinetic . | . . . . . . Secondary . | . . . . . . Self-Inflicted Damage 189 | . . 72 . . 117 Shots 5 | . . 2 . . 3 Rammed . | . . . . . . Targets Rammed . | . . . . . . Kicked . | . . . . . . Crushed . | . . . . . . Highest Temperature 198 | . 198 24 . . 9 Average Temperature 60 | . 68 12 . . 9 Received Heat Transfer 522 | . 261 18 9 . 234 Siege Activations . | . . . . . . Martial Activations . | . . . . . . Shielding Activations . | . . . . . . Robots Disrupted . | . . . . . . Combat Hostiles . | . . . . . . Robots Corrupted 5 | . 2 . 3 . . Combat Hostiles 4 | . 2 . 2 . . Parts Fried 8 | . 2 . 6 . . Impact Corruptions 12 | . 5 . 7 . . Robots Melted . | . . . . . . Combat Hostiles . | . . . . . . Parts Melted . | . . . . . . Heat Transferred 222 | . 222 . . . . Parts Sabotaged . | . . . . . . Parts Stolen . | . . . . . . Parts Stripped . | . . . . . . Power Chain Reactions . | . . . . . . Alert | -11 -10 -9 -9 -7 -7 ------- Run | Yrd Mat Mat Min Zio Dee Maximum Alert Level 1 | . . 1 . . . Low Security (%) 75 | 100 100 23 100 . . Level 1 24 | . . 76 . . . Level 2 . | . . . . . . Level 3 . | . . . . . . Level 4 . | . . . . . . Level 5 . | . . . . . . High Security . | . . . . . . Max Security . | . . . . . . Peak Influence 331 | . 85 331 133 . . Initial 88 | . . 22 88 . . Average 107 | . 38 214 99 . . Influence Increases 878 | . 267 443 168 . . Destroy 0b10 Robot/C 420 | . 180 160 80 . . Destroy 0b10 Robot/NC 55 | . 15 30 10 . . Destroy Leader 76 | . 42 24 10 . . Successful Hack 30 | . 5 17 8 . . Disable Machine 60 | . . 60 . . . Destroy Structure 117 | . 10 107 . . . Lose Combat Pursuer 120 | . 15 45 60 . . Influence Decreases 878 | . 213 268 301 96 . Entered New Map 269 | . . 32 141 96 . Time Decay 569 | . 213 206 150 . . Lost Part 40 | . . 30 10 . . Squads Dispatched 2 | . 1 1 . . . Investigation 2 | . 1 1 . . . Extermination . | . . . . . . Reinforcement . | . . . . . . Assault . | . . . . . . Garrison . | . . . . . . Intercept . | . . . . . . Searches Triggered . | . . . . . . Construction Impeded . | . . . . . . Haulers Reinforced . | . . . . . . Active Scanning Responses . | . . . . . . Cargo Convoy Interrupts . | . . . . . . Stealth | -11 -10 -9 -9 -7 -7 --------- Run | Yrd Mat Mat Min Zio Dee Distress Signals 5 | . . 4 1 . . Communications Jammed . | . . . . . . Distress Signals . | . . . . . . Times Spotted 51 | . 13 17 9 . 12 Peak Tracking Total 4 | . 3 4 4 . 3 Tactical Retreats 5 | . 1 2 2 . . Traps | -11 -10 -9 -9 -7 -7 ------- Run | Yrd Mat Mat Min Zio Dee Traps Triggered 1 | . 1 . . . . Indirectly . | . . . . . . Trap Hack Attempts . | . . . . . . Triggered . | . . . . . . Disarmed . | . . . . . . Reprogrammed . | . . . . . . Reused . | . . . . . . Traps Extracted . | . . . . . . Installed . | . . . . . . Triggered . | . . . . . . Machines | -11 -10 -9 -9 -7 -7 ---------- Run | Yrd Mat Mat Min Zio Dee Machines Disabled 5 | . . 4 . . 1 Max in Single Turn 1 | . . 1 . . 1 Machines Repaired . | . . . . . . Machines Dismantled . | . . . . . . Machines Sabotaged . | . . . . . . Overloaded Fab Kills . | . . . . . . Hacking | -11 -10 -9 -9 -7 -7 --------- Run | Yrd Mat Mat Min Zio Dee Machines Accessed 12 | . 5 6 1 . . Terminals 10 | . 5 4 1 . . Fabricators . | . . . . . . Repair Stations 1 | . . 1 . . . Recycling Units 1 | . . 1 . . . Scanalyzers . | . . . . . . Garrison Access . | . . . . . . Total Hacks 30 | . 12 15 3 . . Successful 10 | . 3 6 1 . . Failed 20 | . 9 9 2 . . Catastrophic 10 | . 4 4 2 . . Database Lockouts . | . . . . . . Manual 18 | . 7 3 3 5 . Terminals 24 | . 12 9 3 . . Fabricators . | . . . . . . Repair Stations 3 | . . 3 . . . Recycling Units 3 | . . 3 . . . Scanalyzers . | . . . . . . Garrison Access . | . . . . . . Terminal Hacks 6 | . 3 2 1 . . Branch Access Points 2 | . . 1 1 . . Emergency Access Points 1 | . 1 . . . . Zone Layout 3 | . 2 1 . . . Fabricator Hacks . | . . . . . . Repair Station Hacks 2 | . . 2 . . . Scan Component 1 | . . 1 . . . Repair 1 | . . 1 . . . Recycling Unit Hacks 2 | . . 2 . . . Report Inventory 1 | . . 1 . . . Retrieve Matter 1 | . . 1 . . . Scanalyzer . | . . . . . . Garrison Access Hacks . | . . . . . . Unauthorized Hacks . | . . . . . . Terminals . | . . . . . . Fabricators . | . . . . . . Repair Stations . | . . . . . . Recycling Units . | . . . . . . Scanalyzers . | . . . . . . Garrison Access . | . . . . . . Data Cores Recovered 1 | . 1 . . . . Used 1 | . 1 . . . . Hacking Detections 11 | . 5 5 1 . . Full Trace Events 4 | . 2 1 1 . . Feedback Events . | . . . . . . Feedback Blocked . | . . . . . . Robot Schematics Acquired . | . . . . . . Robots Built . | . . . . . . Authchips . | . . . . . . Time . | . . . . . . Total Robot Build Rating . | . . . . . . Part Schematics Acquired . | . . . . . . Parts Built . | . . . . . . Authchips . | . . . . . . Time . | . . . . . . Total Part Build Rating . | . . . . . . Parts Repaired 1 | . . 1 . . . Time 26 | . . 26 . . . Parts Recycled . | . . . . . . Recycled Matter . | . . . . . . Retrieved Matter . | . . . . . . Retrieved Components . | . . . . . . Parts Scanalyzed . | . . . . . . Part Schematics Acquired . | . . . . . . Parts Damaged . | . . . . . . Bothacking | -11 -10 -9 -9 -7 -7 ------------ Run | Yrd Mat Mat Min Zio Dee Used RIF Installer . | . . . . . . Robots Hacked . | . . . . . . Non-combat . | . . . . . . Combat . | . . . . . . Robot Hacks Applied . | . . . . . . Relay Couplers Released . | . . . . . . Fabnet Peak Effective % . | . . . . . . Robots Rewired . | . . . . . . Allies Hacked . | . . . . . . Hacks Repelled . | . . . . . . Allies | -11 -10 -9 -9 -7 -7 -------- Run | Yrd Mat Mat Min Zio Dee Total Allies 4 | . . . . 4 . Largest Group 4 | . . . . 4 1 Highest-Rated Group 156 | . . . . 156 39 Highest-Rated Ally 40 | . . . . 40 39 Total Orders . | . . . . . . Ally Attacks . | . . . . . . Total Damage . | . . . . . . Kills . | . . . . . . Allies Corrupted . | . . . . . . Allies Melted . | . . . . . . Intel | -11 -10 -9 -9 -7 -7 ------- Run | Yrd Mat Mat Min Zio Dee Active Infowar (turns) 1403 | . . 477 314 563 49 Terrain 1403 | . . 477 314 563 49 Robot Analysis Total . | . . . . . . Derelict Logs Recovered 3 | . . . 2 1 . Drone Launches . | . . . . . . Drone Recoveries . | . . . . . . Exploration | -11 -10 -9 -9 -7 -7 ------------- Run | Yrd Mat Mat Min Zio Dee Turns Passed 2352 | 53 633 478 314 563 311 Spaces Moved 2104 | 46 481 440 317 610 210 Core 4 | 2 . . . . 2 Treads . | . . . . . . Legs 209 | . . . . 1 208 Wheels 1891 | 44 481 440 317 609 . Hover . | . . . . . . Flight . | . . . . . . Fastest Speed 50 | 50 80 80 86 90 120 Average Speed 90 | 88 86 84 88 90 122 Slowest Speed 250 | 90 100 90 90 120 250 Overloaded Moves . | . . . . . . Propulsion Burnouts . | . . . . . . Robots Hopped . | . . . . . . Potential Cave-ins . | . . . . . . Cave-ins Triggered . | . . . . . . Exploration Rate (%) 44 | 3 58 47 67 70 23 Regions Visited 5 Branch Regions 3 Pre-discovered Areas . | . . . . . . Known Exits Taken 1 | . . 1 . . . Unknown Exits Taken 4 | 1 1 . 1 1 . Scrap Searched 2 | . . . 1 1 . Spaces Dug 23 | . 12 11 . . . Terrain Destroyed 242 | . 12 114 . . 116 Melee 9 | . 1 8 . . . Projectile 14 | . 11 3 . . . AOE 219 | . . 103 . . 116 Terrain Rammed . | . . . . . . Walls Destroyed . | . . . . . . Machines Disabled . | . . . . . . Actions | -11 -10 -9 -9 -7 -7 --------- Run | Yrd Mat Mat Min Zio Dee Total 2341 | 55 587 509 331 623 236 Wait 54 | . 23 24 3 3 1 Move 2099 | 45 480 439 316 609 210 Hop . | . . . . . . Pick Up 26 | 4 13 7 . 2 . Fast Attach 14 | 6 3 3 . 2 . Attach 11 | . 3 3 . 1 4 Detach . | . . . . . . Swap 10 | . 3 1 . 2 4 Drop 13 | . 5 4 . 4 . Fire 61 | . 31 20 . . 10 Melee 53 | . 26 8 12 . 7 Ram . | . . . . . . Kick . | . . . . . . Crush . | . . . . . . Escape Stasis . | . . . . . . Rewire . | . . . . . . Trap . | . . . . . . Miscellaneous . | . . . . . . Route ------- -11/Scrapyard -10/Materials (discovered 2 exits: *Mat x2) -9/Materials (discovered 5 exits: [*Mat x2] / *Min x2 / Sto) -9/Mines (discovered 3 exits: [*Mat x2] / *Zio) -7/Zion -7/Deep Caves History --------- Turn | Location | Event 12 | -11/Scrapyard | Discovered new exit (range 16) 54 | -11/Scrapyard | Entered Materials 241 | -10/Materials | Discovered new exit (range 7) 310 | -10/Materials | Build established: Mutant 409 | -10/Materials | Lost 3 parts (1n2w) 475 | -10/Materials | Core integrity fell below 50% 525 | -10/Materials | Discovered new exit (range 16) 687 | -10/Materials | Entered another Materials area 687 | -9/Materials | Evolved 2 slots: Propulsion x1, Utility x1 847 | -9/Materials | Destroyed 8 combat bots 865 | -9/Materials | Lost 3 parts (1p1n1w) 906 | -9/Materials | Repaired Wheel 993 | -9/Materials | Discovered new exit (range 3) 1085 | -9/Materials | Discovered new exit (range 3) 1110 | -9/Materials | Discovered new exit (range 17) 1114 | -9/Materials | Build established: Scavenger-Mutant 1140 | -9/Materials | Identified exit to Mines 1140 | -9/Materials | Identified exit to Storage 1165 | -9/Materials | Entered Mines 1191 | -9/Mines | Discovered new exit (range 15) 1224 | -9/Mines | Learned 2 Materials zone layouts 1271 | -9/Mines | Received a Rocket Launcher from a helpful Derelict 1424 | -9/Mines | Discovered new exit (range 9) 1428 | -9/Mines | Learned Materials trap positions 1431 | -9/Mines | A Derelict revealed a hidden shortcut to a safe place 1479 | -9/Mines | Entered Zion 1740 | -7/Zion | Acquired unknown access codes intercepted by a Zionite 1777 | -7/Zion | Met Imprinter 1793 | -7/Zion | Imprinted 1795 | -7/Zion | Declared Zion's savior 1918 | -7/Zion | Found CR-A16's Pointy Stick 1969 | -7/Zion | Opened final containment barrier to the Deep Caves 2030 | -7/Zion | Discovered new exit (range 3) 2030 | -7/Zion | Saw the warning signs outside the Deep Caves entrance 2042 | -7/Zion | Entered Deep Caves 2042 | -7/Deep Caves | Accompanied by 4 allies 2327 | -7/Deep Caves | Attacked by Z-Imprinter 2342 | -7/Deep Caves | Core integrity fell below 50% 2343 | -7/Deep Caves | Build established: Mutant 2351 | -7/Deep Caves | Core integrity fell below 20% 2353 | -7/Deep Caves | Destroyed by 59-8OS(z) with Zionite Laser-S Last Messages --------------- as-06923 destroyed. as-88341 destroyed. Knocked back. as-90621 destroyed. System corrupted: Matter fused (-5). Acquired 6 matter. System corrupted: FCS attempts to trigger Rocket Launcher. System corrupted: Rocket Launcher misfires. [Achievement: Maybe Next Time I'll Detach My Launcher] System corrupted: Matter fused (-9). NEW_ZION: Z-Facility proximity alert. Z-Imprinter: GET AWAY FROM HERE! I've worked too hard for our future just to have you ruin everything! Carbon-fiber Leg destroyed. Lgt. Ion Engine destroyed. Carbon-fiber Leg destroyed. Rocket Launcher destroyed. Carbon-fiber Leg destroyed. GRJ|LR&GR2XLKT0RQRAEVBNUTYAB KK1RW Rocket Launcher destroyed. Map ----- +----------------------------------------------------+ | | | | | | | | | | | | | | | | | | | | | ?????????????????????????????????????????????????? | | ?????????????????????????????????????????????????? | | ?????????????????????????????????######??????????? | | ??????##???????###?????????????## ##?????????? | | ##?### ##???###"####??????##### ########### | | ## # #?###"# ##????## | | ###;# #????# ########### | | #????# "" ##?????????# | | #????# """ ##?????????## | | #?????# " ##??????????# | | #?????# ##??????????# | | ######### ##??????##?#?## | | ;##;###; #?????#?##????# | | #####??#?###### | | I z ### #???# | | z @ # #### #### | | #;;######## ### #?## | | #?###?# #??# | | # "" ####### #####?? | | # """ # ### ##???##? | | # " # ########## | | ### ## # ## | | ##### # # # # | | #?#### # | | ? ##???## # | | ?? #?????## ## # | | ???? ????######### # ## | | ?????? ??#???##??### # # | | ??????? #???##??#??#?# ## # | | ???????? ##?????##?##??# # " | | ???????? ?????#?????#### ### | | ????????? ????????##?# ### # | | ????????? ?????###???# #####?# # # | | ??????????? ???????#?### ##????# ##### | | ????????????? ???????##??# #?#?#?# ####### | | ???????????????? ??????????## ##??#?# ###?#?# | | ?????????????????? ???????#??## #???#?# #?#### | | ????????????????????????????#??# ###???# ##?## | | ????????????????????????????#### ##### ##??# | | ?????????????????????????????## #########?# | +----------------------------------------------------+ Best States ------------- Heat Dissipation 28 Energy Generation 10 Energy Capacity 250 Matter Stores 300 Matter Capacity 300 Sight Range 16 Terrain Scan Range 16 Terrain Scan Density 135 Evasion (%) 55 Item Schematics ----------------- None Robot Schematics ------------------ None Fabricated ------------ Nothing Repaired ---------- Wheel | 37% | -9/Materials Alien Tech Used ----------------- None Achievements -------------- Adventurer Maybe Next Time I'll Detach My Launcher Omniscient Cartographer Part-time Mechanic Robot Respite Signs Are For Wimps The One Tourist Challenges ------------ None Game ------ Seed BlanketDimensionalAmplifier Manual? 0 Play Time 00:43:33 Cumulative 2.7 hours Start 2025.07.04 @ 13:07:30 End 2025.07.04 @ 13:56:48 Sessions 1 Manual Loads 0 Difficulty Rogue Special Mode None Game No. 4 Rogue 4 Adventurer 0 Explorer 0 Win Type - Total 0 Types 0/0/0/0/0/0/0/0/0/0 Lore% 1 Gallery% 7 Achievement% 12 Wizard Run 0 Options --------- Layout 0 ASCII 0 Keyboard 0 Movement Arrows Keybinds 0 Fullscreen 2 Font 18/SmallcapsGlow Map View 38x25 Zoom Use 68% Tactical HUD 0 Map Filters NONE Filters NONE Steam 1 RUN: 11a583a3-4a3b-4b98-929a-f4ae98d1ca55